[Event "Late-Titled-Tuesday-Blitz-May-28-2024"]
[Site "Chess.com"]
[Date "2024.05.28"]
[Round "6"]
[White "Eloist"]
[Black "KejJaj"]
[Result "1/2-1/2"]
[WhiteElo "2444"]
[BlackElo "2159"]
[TimeControl "180+1"]
[EndTime "15:07:51 PDT"]
[Termination "Game drawn by repetition"]

1. e4 {[%clk 0:03:00.1]} 1... g6 {[%clk 0:02:57.6]} 2. d4 {[%clk 0:02:59.8]}
2... Bg7 {[%clk 0:02:57.5]} 3. Nc3 {[%clk 0:03:00.1]} 3... d6 {[%clk 0:02:53.4]}
4. Nf3 {[%clk 0:03:00.1]} 4... a6 {[%clk 0:02:53.8]} 5. Bc4 {[%clk 0:02:59.8]}
5... b5 {[%clk 0:02:45]} 6. Bd5 {[%clk 0:02:59.7]} 6... c6 {[%clk 0:02:44.3]} 7.
Bb3 {[%clk 0:02:59.7]} 7... Nf6 {[%clk 0:02:38.2]} 8. e5 {[%clk 0:02:57.4]} 8...
Ng4 {[%clk 0:02:33.1]} 9. h3 {[%clk 0:02:32]} 9... Nh6 {[%clk 0:02:25.6]} 10.
O-O {[%clk 0:02:21.2]} 10... O-O {[%clk 0:02:22.9]} 11. exd6 {[%clk 0:02:12.9]}
11... exd6 {[%clk 0:02:18.4]} 12. Bg5 {[%clk 0:02:11.7]} 12... Qb6 {[%clk
0:02:13.6]} 13. Ne4 {[%clk 0:02:00.5]} 13... d5 {[%clk 0:01:52.7]} 14. Nf6+
{[%clk 0:01:41.6]} 14... Kh8 {[%clk 0:01:53.2]} 15. Ne5 {[%clk 0:01:33.8]} 15...
Ng8 {[%clk 0:01:41.3]} 16. Nxg8 {[%clk 0:01:28.9]} 16... Kxg8 {[%clk 0:01:42.2]}
17. Be7 {[%clk 0:01:18.7]} 17... Re8 {[%clk 0:01:40.9]} 18. Bc5 {[%clk
0:01:16.5]} 18... Qc7 {[%clk 0:01:38.5]} 19. Nd3 {[%clk 0:01:11.5]} 19... Nd7
{[%clk 0:01:35.1]} 20. c3 {[%clk 0:01:06.5]} 20... Nxc5 {[%clk 0:01:33.6]} 21.
Nxc5 {[%clk 0:01:05.8]} 21... Bf5 {[%clk 0:01:32.9]} 22. g4 {[%clk 0:00:59.3]}
22... Be4 {[%clk 0:01:30.6]} 23. Bc2 {[%clk 0:00:40.1]} 23... Bxc2 {[%clk
0:01:28.1]} 24. Qxc2 {[%clk 0:00:39.7]} 24... Qf4 {[%clk 0:01:25.4]} 25. Kg2
{[%clk 0:00:36.8]} 25... h5 {[%clk 0:01:18.6]} 26. Nd3 {[%clk 0:00:23.4]} 26...
Qg5 {[%clk 0:01:12.4]} 27. f4 {[%clk 0:00:19.9]} 27... Qh4 {[%clk 0:01:13]} 28.
Qf2 {[%clk 0:00:19.2]} 28... Qxf2+ {[%clk 0:01:07.2]} 29. Kxf2 {[%clk
0:00:19.4]} 29... hxg4 {[%clk 0:01:03.6]} 30. hxg4 {[%clk 0:00:19]} 30... Re4
{[%clk 0:01:02.1]} 31. Rfe1 {[%clk 0:00:19]} 31... Rae8 {[%clk 0:01:02]} 32.
Rxe4 {[%clk 0:00:17.9]} 32... Rxe4 {[%clk 0:00:59.1]} 33. Re1 {[%clk 0:00:17.8]}
33... Rxe1 {[%clk 0:00:56.1]} 34. Kxe1 {[%clk 0:00:17.7]} 34... a5 {[%clk
0:00:52.8]} 35. a4 {[%clk 0:00:12.1]} 35... bxa4 {[%clk 0:00:50.6]} 36. Nc5
{[%clk 0:00:12.2]} 36... Bf8 {[%clk 0:00:47.5]} 37. Nxa4 {[%clk 0:00:12.2]}
37... f5 {[%clk 0:00:43.1]} 38. gxf5 {[%clk 0:00:10.8]} 38... gxf5 {[%clk
0:00:43.5]} 39. Ke2 {[%clk 0:00:10.5]} 39... Bd6 {[%clk 0:00:43.1]} 40. Kf3
{[%clk 0:00:10.8]} 40... Kf7 {[%clk 0:00:43.2]} 41. b3 {[%clk 0:00:10.1]} 41...
Ke7 {[%clk 0:00:40.6]} 42. Nb2 {[%clk 0:00:10.3]} 42... Ba3 {[%clk 0:00:38.3]}
43. Nd3 {[%clk 0:00:10.4]} 43... Ke6 {[%clk 0:00:36.4]} 44. Ne5 {[%clk
0:00:09.2]} 44... Kd6 {[%clk 0:00:34]} 45. Ke3 {[%clk 0:00:09.5]} 45... Bb2
{[%clk 0:00:33.2]} 46. Kd3 {[%clk 0:00:09.3]} 46... Bc1 {[%clk 0:00:33.4]} 47.
Ng6 {[%clk 0:00:07.6]} 47... Ke6 {[%clk 0:00:29.4]} 48. Kc2 {[%clk 0:00:07.9]}
48... Be3 {[%clk 0:00:28.5]} 49. Kd3 {[%clk 0:00:08.2]} 49... Bc1 {[%clk
0:00:28.3]} 50. Kc2 {[%clk 0:00:08.5]} 50... Ba3 {[%clk 0:00:27.8]} 51. Ne5
{[%clk 0:00:08]} 51... Kd6 {[%clk 0:00:26.5]} 52. c4 {[%clk 0:00:07.5]} 52...
Bb4 {[%clk 0:00:23.7]} 53. Kd3 {[%clk 0:00:07.1]} 53... dxc4+ {[%clk 0:00:19.7]}
54. Nxc4+ {[%clk 0:00:05.7]} 54... Kd5 {[%clk 0:00:17.8]} 55. Ne3+ {[%clk
0:00:05.7]} 55... Ke6 {[%clk 0:00:17.7]} 56. Kc4 {[%clk 0:00:05.6]} 56... Bd2
{[%clk 0:00:16.4]} 57. d5+ {[%clk 0:00:05.9]} 57... cxd5+ {[%clk 0:00:15.9]} 58.
Nxd5 {[%clk 0:00:06.1]} 58... Kd6 {[%clk 0:00:15.7]} 59. Kd4 {[%clk 0:00:05.3]}
59... Be1 {[%clk 0:00:12.6]} 60. Kc4 {[%clk 0:00:05.1]} 60... Bd2 {[%clk
0:00:12.3]} 61. Kd4 {[%clk 0:00:05.4]} 61... Be1 {[%clk 0:00:12.4]} 62. Kc4
{[%clk 0:00:05.6]} 62... Bd2 {[%clk 0:00:12.6]} 1/2-1/2

[Event "Late-Titled-Tuesday-Blitz-May-28-2024"]
[Site "Chess.com"]
[Date "2024.05.28"]
[Round "6"]
[White "Jahonas"]
[Black "Maikrosoft63"]
[Result "1-0"]
[WhiteElo "2455"]
[BlackElo "2594"]
[TimeControl "180+1"]
[EndTime "15:07:54 PDT"]
[Termination "Jahonas won by resignation"]

1. d4 {[%clk 0:03:00.9]} 1... Nf6 {[%clk 0:03:00]} 2. Nf3 {[%clk 0:03:00.7]}
2... e6 {[%clk 0:02:59.9]} 3. c3 {[%clk 0:03:00.7]} 3... c5 {[%clk 0:02:56.3]}
4. e3 {[%clk 0:02:56.9]} 4... Be7 {[%clk 0:02:52.2]} 5. Be2 {[%clk 0:02:57.1]}
5... O-O {[%clk 0:02:52.3]} 6. O-O {[%clk 0:02:57.1]} 6... b6 {[%clk 0:02:52.4]}
7. Nbd2 {[%clk 0:02:57.2]} 7... Bb7 {[%clk 0:02:52.7]} 8. b3 {[%clk 0:02:55.5]}
8... d6 {[%clk 0:02:51.8]} 9. Bb2 {[%clk 0:02:55]} 9... Nbd7 {[%clk 0:02:51.4]}
10. c4 {[%clk 0:02:55.2]} 10... cxd4 {[%clk 0:02:47.9]} 11. Nxd4 {[%clk
0:02:50.4]} 11... a6 {[%clk 0:02:45.5]} 12. Bf3 {[%clk 0:02:49.4]} 12... Qc7
{[%clk 0:02:44.3]} 13. Qe2 {[%clk 0:02:46.2]} 13... Rac8 {[%clk 0:02:41.3]} 14.
Rfd1 {[%clk 0:02:45.1]} 14... Rfd8 {[%clk 0:02:35.8]} 15. Rac1 {[%clk
0:02:44.2]} 15... Ne5 {[%clk 0:02:30.1]} 16. Bxb7 {[%clk 0:02:41.7]} 16... Qxb7
{[%clk 0:02:31]} 17. N2f3 {[%clk 0:02:40.5]} 17... Ng6 {[%clk 0:02:24.9]} 18. h3
{[%clk 0:02:34.7]} 18... Ne4 {[%clk 0:02:20.6]} 19. Rc2 {[%clk 0:02:22.9]} 19...
h6 {[%clk 0:02:17.1]} 20. Rdc1 {[%clk 0:02:22.1]} 20... Bf6 {[%clk 0:02:11.5]}
21. a3 {[%clk 0:02:18.7]} 21... Qd7 {[%clk 0:02:06.6]} 22. Nd2 {[%clk
0:02:06.5]} 22... Nc5 {[%clk 0:01:47]} 23. b4 {[%clk 0:01:45]} 23... Na4 {[%clk
0:01:46.4]} 24. Ba1 {[%clk 0:01:44.7]} 24... Rc7 {[%clk 0:01:31.4]} 25. Ne4
{[%clk 0:01:41.8]} 25... Be7 {[%clk 0:01:31.6]} 26. b5 {[%clk 0:01:29.2]} 26...
axb5 {[%clk 0:01:21]} 27. cxb5 {[%clk 0:01:29]} 27... Rxc2 {[%clk 0:01:04.3]}
28. Qxc2 {[%clk 0:01:25.9]} 28... Nc5 {[%clk 0:01:04.8]} 29. Nc6 {[%clk
0:01:23.9]} 29... Ra8 {[%clk 0:01:04]} 30. Nxc5 {[%clk 0:01:22]} 30... dxc5
{[%clk 0:00:56.5]} 31. a4 {[%clk 0:01:17.9]} 31... Bf6 {[%clk 0:00:44.8]} 32.
Bxf6 {[%clk 0:01:17.5]} 32... gxf6 {[%clk 0:00:45.7]} 33. Rd1 {[%clk 0:01:17.2]}
33... Qc7 {[%clk 0:00:44.4]} 34. Qe4 {[%clk 0:01:16.5]} 34... Kg7 {[%clk
0:00:42.2]} 35. Ne5 {[%clk 0:01:00.9]} 35... Rd8 {[%clk 0:00:35.1]} 36. Rxd8
{[%clk 0:00:57.2]} 36... Qxd8 {[%clk 0:00:36]} 37. Nxg6 {[%clk 0:00:57.4]} 37...
fxg6 {[%clk 0:00:30.4]} 38. Qxe6 {[%clk 0:00:57.1]} 38... Qd1+ {[%clk
0:00:28.6]} 39. Kh2 {[%clk 0:00:56.2]} 39... Qxa4 {[%clk 0:00:27.8]} 40. Qe7+
{[%clk 0:00:48.4]} 40... Kg8 {[%clk 0:00:27.2]} 41. Qd8+ {[%clk 0:00:36.3]}
41... Kf7 {[%clk 0:00:27.4]} 42. Qc7+ {[%clk 0:00:36.5]} 42... Kf8 {[%clk
0:00:26.2]} 43. Qxb6 {[%clk 0:00:36.5]} 43... c4 {[%clk 0:00:22.4]} 44. Qxf6+
{[%clk 0:00:35.3]} 44... Ke8 {[%clk 0:00:22.7]} 45. Qxg6+ {[%clk 0:00:35.3]}
45... Kd8 {[%clk 0:00:23]} 46. Qd6+ {[%clk 0:00:31.9]} 46... Kc8 {[%clk
0:00:22.8]} 47. b6 {[%clk 0:00:32.1]} 47... Qd7 {[%clk 0:00:08.5]} 48. Qc5+
{[%clk 0:00:30.5]} 48... Kb7 {[%clk 0:00:08.7]} 49. Qxc4 {[%clk 0:00:30.5]}
49... Qd6+ {[%clk 0:00:08.3]} 50. Qf4 {[%clk 0:00:30.6]} 50... Qxb6 {[%clk
0:00:08.1]} 51. g4 {[%clk 0:00:29.3]} 51... Qe6 {[%clk 0:00:06.1]} 52. Kg3
{[%clk 0:00:25.3]} 52... Qa6 {[%clk 0:00:02.8]} 53. h4 {[%clk 0:00:24]} 53...
Qf1 {[%clk 0:00:02.8]} 54. Qf3+ {[%clk 0:00:23.5]} 54... Kc7 {[%clk 0:00:02.8]}
55. Qf4+ {[%clk 0:00:23.1]} 55... Kd8 {[%clk 0:00:03.2]} 56. Qd6+ {[%clk
0:00:21.3]} 56... Ke8 {[%clk 0:00:03.2]} 57. Qe6+ {[%clk 0:00:21.4]} 57... Kd8
{[%clk 0:00:03.9]} 58. Qxh6 {[%clk 0:00:19.8]} 58... Qg1+ {[%clk 0:00:03.8]} 59.
Kf3 {[%clk 0:00:20]} 59... Qd1+ {[%clk 0:00:02.4]} 60. Kf4 {[%clk 0:00:19.9]}
60... Qa4+ {[%clk 0:00:02.2]} 61. e4 {[%clk 0:00:18.9]} 61... Qd1 {[%clk
0:00:02.4]} 62. Qg5+ {[%clk 0:00:18.8]} 62... Kd7 {[%clk 0:00:02.6]} 63. Qd5+
{[%clk 0:00:19]} 1-0

[Event "Late-Titled-Tuesday-Blitz-May-28-2024"]
[Site "Chess.com"]
[Date "2024.05.28"]
[Round "6"]
[White "Konavets"]
[Black "AlexeiShirov"]
[Result "1-0"]
[WhiteElo "3099"]
[BlackElo "2914"]
[TimeControl "180+1"]
[EndTime "15:07:57 PDT"]
[Termination "Konavets won on time"]

1. e4 {[%clk 0:02:32.4]} 1... e5 {[%clk 0:02:58.9]} 2. Nf3 {[%clk 0:02:32.9]}
2... Nc6 {[%clk 0:02:59]} 3. Bc4 {[%clk 0:02:33.6]} 3... Nf6 {[%clk 0:02:58.1]}
4. d3 {[%clk 0:02:33.5]} 4... Bc5 {[%clk 0:02:57]} 5. O-O {[%clk 0:02:33.4]}
5... O-O {[%clk 0:02:56.6]} 6. c3 {[%clk 0:02:32.8]} 6... d5 {[%clk 0:02:55.6]}
7. exd5 {[%clk 0:02:33.7]} 7... Nxd5 {[%clk 0:02:55.1]} 8. a4 {[%clk 0:02:34.6]}
8... a5 {[%clk 0:02:53.5]} 9. Re1 {[%clk 0:02:34.9]} 9... Bg4 {[%clk 0:02:50.5]}
10. h3 {[%clk 0:02:35.4]} 10... Bh5 {[%clk 0:02:49.8]} 11. Nbd2 {[%clk 0:02:36]}
11... Nb6 {[%clk 0:02:43.9]} 12. Bb3 {[%clk 0:02:36.5]} 12... Qxd3 {[%clk
0:02:28.2]} 13. Nxe5 {[%clk 0:02:36.5]} 13... Bxd1 {[%clk 0:01:54.5]} 14. Nxd3
{[%clk 0:02:35.4]} 14... Bxb3 {[%clk 0:01:54.2]} 15. Nxc5 {[%clk 0:02:24.1]}
15... Bc2 {[%clk 0:01:53.1]} 16. b3 {[%clk 0:02:16.9]} 16... Rfe8 {[%clk
0:01:37.5]} 17. Nf3 {[%clk 0:02:14.4]} 17... Nd5 {[%clk 0:01:16.3]} 18. Ra2
{[%clk 0:02:13.9]} 18... Bg6 {[%clk 0:01:10.8]} 19. Nxb7 {[%clk 0:01:48.5]}
19... Nxc3 {[%clk 0:01:10.3]} 20. Rd2 {[%clk 0:01:48.6]} 20... Rxe1+ {[%clk
0:01:03.2]} 21. Nxe1 {[%clk 0:01:49.5]} 21... Rb8 {[%clk 0:00:57.4]} 22. Nc5
{[%clk 0:01:46.1]} 22... Ne4 {[%clk 0:00:55.9]} 23. Nxe4 {[%clk 0:01:13.6]}
23... Bxe4 {[%clk 0:00:55.6]} 24. Rd7 {[%clk 0:01:13.7]} 24... Rxb3 {[%clk
0:00:40.2]} 25. f3 {[%clk 0:01:13.9]} 25... Bf5 {[%clk 0:00:35.7]} 26. Rxc7
{[%clk 0:01:14.2]} 26... Nd4 {[%clk 0:00:31.1]} 27. Bd2 {[%clk 0:01:14.8]} 27...
Ra3 {[%clk 0:00:22.2]} 28. Rc4 {[%clk 0:01:09.1]} 28... Nb3 {[%clk 0:00:15.1]}
29. Rc3 {[%clk 0:00:11.8]} 29... Be6 {[%clk 0:00:14.9]} 30. Rd3 {[%clk
0:00:12.3]} 30... h6 {[%clk 0:00:13.9]} 31. Bxa5 {[%clk 0:00:12.6]} 31... Rxa4
{[%clk 0:00:13.6]} 32. Bc3 {[%clk 0:00:12.9]} 32... Ra2 {[%clk 0:00:13.2]} 33.
Re3 {[%clk 0:00:10.4]} 33... Nc5 {[%clk 0:00:13.1]} 34. Bd4 {[%clk 0:00:10.5]}
34... Nb3 {[%clk 0:00:13]} 35. Be5 {[%clk 0:00:10.9]} 35... Nc5 {[%clk
0:00:12.9]} 36. Kh2 {[%clk 0:00:10.7]} 36... Nd7 {[%clk 0:00:12.8]} 37. Bc3
{[%clk 0:00:10.2]} 37... Ra3 {[%clk 0:00:12.5]} 38. Nc2 {[%clk 0:00:10]} 38...
Ra2 {[%clk 0:00:12.1]} 39. Nb4 {[%clk 0:00:08.7]} 39... Ra3 {[%clk 0:00:11.1]}
40. Nc2 {[%clk 0:00:09.3]} 40... Ra2 {[%clk 0:00:11.4]} 41. Nd4 {[%clk
0:00:09.9]} 41... Nc5 {[%clk 0:00:10.8]} 42. Bb4 {[%clk 0:00:09.7]} 42... Na6
{[%clk 0:00:10.7]} 43. Bd6 {[%clk 0:00:09.3]} 43... Bd5 {[%clk 0:00:09.8]} 44.
Re5 {[%clk 0:00:06.2]} 44... Bb7 {[%clk 0:00:09]} 45. Kg3 {[%clk 0:00:06.1]}
45... Rd2 {[%clk 0:00:07.9]} 46. Nf5 {[%clk 0:00:06.7]} 46... Kh7 {[%clk
0:00:06]} 47. Re7 {[%clk 0:00:04.5]} 47... Bc8 {[%clk 0:00:06.1]} 48. Bf4 {[%clk
0:00:02.6]} 48... Rd7 {[%clk 0:00:06]} 49. Re8 {[%clk 0:00:02.6]} 49... Bb7
{[%clk 0:00:05.7]} 50. Be5 {[%clk 0:00:02.7]} 50... Rd5 {[%clk 0:00:05.1]} 51.
Nxg7 {[%clk 0:00:01.7]} 51... Rxe5 {[%clk 0:00:05.3]} 52. Rxe5 {[%clk
0:00:02.2]} 52... Kxg7 {[%clk 0:00:05.7]} 53. Rb5 {[%clk 0:00:03]} 53... Bc8
{[%clk 0:00:04.8]} 54. Rb6 {[%clk 0:00:03.6]} 54... f6 {[%clk 0:00:03.2]} 55.
Kh4 {[%clk 0:00:03.5]} 55... Kg6 {[%clk 0:00:02.8]} 56. g4 {[%clk 0:00:04.2]}
56... Kg7 {[%clk 0:00:02.7]} 57. Kh5 {[%clk 0:00:04.7]} 57... Nc5 {[%clk
0:00:01.8]} 58. Rc6 {[%clk 0:00:05.1]} 58... Ne6 {[%clk 0:00:01.3]} 59. Rxc8
{[%clk 0:00:05.4]} 1-0

[Event "Late-Titled-Tuesday-Blitz-May-28-2024"]
[Site "Chess.com"]
[Date "2024.05.28"]
[Round "6"]
[White "mostafa_sakha"]
[Black "ATM622"]
[Result "1-0"]
[WhiteElo "2379"]
[BlackElo "2577"]
[TimeControl "180+1"]
[EndTime "15:07:57 PDT"]
[Termination "mostafa_sakha won by resignation"]

1. d4 {[%clk 0:03:00]} 1... d5 {[%clk 0:02:59.7]} 2. c4 {[%clk 0:02:59.7]} 2...
e6 {[%clk 0:02:59.7]} 3. Nc3 {[%clk 0:02:59.7]} 3... Nf6 {[%clk 0:02:59.9]} 4.
cxd5 {[%clk 0:02:59.9]} 4... exd5 {[%clk 0:03:00.2]} 5. Bg5 {[%clk 0:02:59.9]}
5... c6 {[%clk 0:02:59.6]} 6. e3 {[%clk 0:02:59.8]} 6... Nbd7 {[%clk 0:02:58.6]}
7. Bd3 {[%clk 0:02:59.4]} 7... h6 {[%clk 0:02:58.8]} 8. Bh4 {[%clk 0:02:59.6]}
8... Be7 {[%clk 0:02:59]} 9. Nge2 {[%clk 0:02:59.9]} 9... O-O {[%clk 0:02:59.2]}
10. Qc2 {[%clk 0:02:58.9]} 10... Re8 {[%clk 0:02:56]} 11. Bg3 {[%clk 0:02:54.3]}
11... Nf8 {[%clk 0:02:54.2]} 12. O-O {[%clk 0:02:37.9]} 12... Bd6 {[%clk
0:02:54.3]} 13. Bxd6 {[%clk 0:02:34.6]} 13... Qxd6 {[%clk 0:02:55.2]} 14. Ng3
{[%clk 0:02:32.2]} 14... h5 {[%clk 0:02:38.7]} 15. Rad1 {[%clk 0:02:19]} 15...
h4 {[%clk 0:02:28.7]} 16. Nf5 {[%clk 0:02:18.5]} 16... Bxf5 {[%clk 0:02:26.5]}
17. Bxf5 {[%clk 0:02:19.4]} 17... g6 {[%clk 0:02:25.9]} 18. Bh3 {[%clk 0:02:17]}
18... Ne4 {[%clk 0:02:21.4]} 19. f3 {[%clk 0:02:12.3]} 19... Ng5 {[%clk
0:02:19.1]} 20. Bg4 {[%clk 0:02:04]} 20... Rxe3 {[%clk 0:02:17.5]} 21. Qf2
{[%clk 0:01:55.7]} 21... Qe7 {[%clk 0:02:02.3]} 22. f4 {[%clk 0:01:33.3]} 22...
Ngh7 {[%clk 0:01:41.7]} 23. f5 {[%clk 0:01:33.1]} 23... gxf5 {[%clk 0:01:15]}
24. Bxf5 {[%clk 0:01:11.5]} 24... Ng6 {[%clk 0:01:11.7]} 25. Qc2 {[%clk
0:00:44.3]} 25... Qg5 {[%clk 0:01:06.9]} 26. Rf2 {[%clk 0:00:39.9]} 26... Rae8
{[%clk 0:01:06.1]} 27. Rdf1 {[%clk 0:00:39.6]} 27... Nhf8 {[%clk 0:00:49.5]} 28.
Bxg6 {[%clk 0:00:31.2]} 28... Qxg6 {[%clk 0:00:46.7]} 29. Qb3 {[%clk 0:00:24.1]}
29... R8e7 {[%clk 0:00:33.4]} 30. h3 {[%clk 0:00:14.7]} 30... Rxh3 {[%clk
0:00:30]} 31. Nxd5 {[%clk 0:00:11.4]} 31... cxd5 {[%clk 0:00:10.3]} 32. Qxh3
{[%clk 0:00:10.9]} 32... Qg5 {[%clk 0:00:10.7]} 33. Rf5 {[%clk 0:00:10.3]} 33...
Qe3+ {[%clk 0:00:06.3]} 34. Qxe3 {[%clk 0:00:10.6]} 34... Rxe3 {[%clk
0:00:07.2]} 35. Rxf7 {[%clk 0:00:11.5]} 35... Ng6 {[%clk 0:00:06.4]} 36. Rxb7
{[%clk 0:00:11.4]} 36... Re2 {[%clk 0:00:03.2]} 37. Rc1 {[%clk 0:00:10.5]} 37...
Re8 {[%clk 0:00:02.2]} 38. Rbc7 {[%clk 0:00:09.4]} 38... a5 {[%clk 0:00:02.3]}
39. Rc8 {[%clk 0:00:09.4]} 39... Kf7 {[%clk 0:00:02.7]} 40. Rxe8 {[%clk
0:00:09.3]} 40... Kxe8 {[%clk 0:00:03.6]} 41. Rc5 {[%clk 0:00:10]} 41... Nf4
{[%clk 0:00:04]} 42. Rxa5 {[%clk 0:00:10.2]} 42... Kd7 {[%clk 0:00:04.5]} 43.
Kf2 {[%clk 0:00:09.7]} 43... Kc6 {[%clk 0:00:03.9]} 44. Kf3 {[%clk 0:00:08.9]}
44... Nd3 {[%clk 0:00:04.1]} 45. Ra6+ {[%clk 0:00:07.5]} 45... Kb5 {[%clk
0:00:04.3]} 46. Rh6 {[%clk 0:00:06.4]} 46... Nxb2 {[%clk 0:00:02.2]} 47. Rxh4
{[%clk 0:00:06.7]} 47... Kc4 {[%clk 0:00:02.7]} 48. g4 {[%clk 0:00:06.7]} 48...
Kxd4 {[%clk 0:00:01.1]} 49. g5+ {[%clk 0:00:07.3]} 49... Ke5 {[%clk 0:00:01.6]}
50. a4 {[%clk 0:00:06]} 50... Nc4 {[%clk 0:00:01.5]} 51. Rxc4 {[%clk 0:00:05.7]}
51... dxc4 {[%clk 0:00:01.9]} 52. Ke3 {[%clk 0:00:06]} 52... Kf5 {[%clk
0:00:01.7]} 53. a5 {[%clk 0:00:06.2]} 53... c3 {[%clk 0:00:01.5]} 54. Kd3 {[%clk
0:00:06.3]} 54... Kxg5 {[%clk 0:00:01.9]} 55. a6 {[%clk 0:00:06.4]} 55... Kf4
{[%clk 0:00:01.9]} 56. a7 {[%clk 0:00:06.5]} 56... c2 {[%clk 0:00:02.8]} 57.
Kxc2 {[%clk 0:00:06.7]} 1-0

[Event "Late-Titled-Tuesday-Blitz-May-28-2024"]
[Site "Chess.com"]
[Date "2024.05.28"]
[Round "6"]
[White "BillCoe"]
[Black "Robert_Oros"]
[Result "1/2-1/2"]
[WhiteElo "2113"]
[BlackElo "2428"]
[TimeControl "180+1"]
[EndTime "15:07:59 PDT"]
[Termination "Game drawn - timeout vs insufficient material"]

1. e4 {[%clk 0:03:00.9]} 1... e6 {[%clk 0:02:59.6]} 2. d4 {[%clk 0:03:00.5]}
2... d5 {[%clk 0:02:59.4]} 3. Nd2 {[%clk 0:03:00.9]} 3... Nf6 {[%clk 0:02:58.3]}
4. e5 {[%clk 0:03:00.9]} 4... Nfd7 {[%clk 0:02:57.9]} 5. Bd3 {[%clk 0:03:01.5]}
5... c5 {[%clk 0:02:57.5]} 6. c3 {[%clk 0:03:02]} 6... Nc6 {[%clk 0:02:57.7]} 7.
Ne2 {[%clk 0:03:02.1]} 7... cxd4 {[%clk 0:02:56.8]} 8. cxd4 {[%clk 0:03:03]}
8... f6 {[%clk 0:02:57.2]} 9. exf6 {[%clk 0:03:02.2]} 9... Nxf6 {[%clk
0:02:57.1]} 10. O-O {[%clk 0:03:02.2]} 10... Bd6 {[%clk 0:02:57.3]} 11. Nf3
{[%clk 0:03:02.3]} 11... Qc7 {[%clk 0:02:57]} 12. Bg5 {[%clk 0:03:02]} 12... O-O
{[%clk 0:02:56.2]} 13. Bh4 {[%clk 0:03:01]} 13... Nh5 {[%clk 0:02:54.1]} 14. Bg3
{[%clk 0:02:53.6]} 14... Nxg3 {[%clk 0:02:52.6]} 15. hxg3 {[%clk 0:02:51.3]}
15... g6 {[%clk 0:02:51.2]} 16. Rc1 {[%clk 0:02:48.2]} 16... Qg7 {[%clk
0:02:50]} 17. a3 {[%clk 0:02:46.5]} 17... Bd7 {[%clk 0:02:43.7]} 18. b4 {[%clk
0:02:44.8]} 18... Kh8 {[%clk 0:02:37.6]} 19. Qd2 {[%clk 0:02:25.4]} 19... a6
{[%clk 0:02:27.8]} 20. Bb1 {[%clk 0:02:17.8]} 20... Ne7 {[%clk 0:02:17.4]} 21.
Qd3 {[%clk 0:02:05.7]} 21... Rac8 {[%clk 0:02:12.2]} 22. Rxc8 {[%clk 0:02:00.5]}
22... Rxc8 {[%clk 0:02:10.7]} 23. Ba2 {[%clk 0:01:52.5]} 23... Bb5 {[%clk
0:02:06]} 24. Qd2 {[%clk 0:01:52.7]} 24... Nc6 {[%clk 0:01:45.9]} 25. Re1 {[%clk
0:01:49.5]} 25... Ne7 {[%clk 0:01:32]} 26. Nf4 {[%clk 0:01:36.9]} 26... Bxf4
{[%clk 0:01:24.5]} 27. Qxf4 {[%clk 0:01:37.8]} 27... Nf5 {[%clk 0:01:12.5]} 28.
Rxe6 {[%clk 0:01:23.2]} 28... Bc4 {[%clk 0:01:06.2]} 29. Bb1 {[%clk 0:01:14.1]}
29... Nh6 {[%clk 0:00:55.3]} 30. Ng5 {[%clk 0:00:59.4]} 30... Rf8 {[%clk
0:00:53.7]} 31. Qd6 {[%clk 0:00:50.4]} 31... Nf5 {[%clk 0:00:46.3]} 32. Bxf5
{[%clk 0:00:39.7]} 32... gxf5 {[%clk 0:00:46.3]} 33. Nf3 {[%clk 0:00:35.4]}
33... f4 {[%clk 0:00:23.7]} 34. Re7 {[%clk 0:00:35.6]} 34... Qf6 {[%clk
0:00:21.4]} 35. Qxf6+ {[%clk 0:00:35.3]} 35... Rxf6 {[%clk 0:00:21.1]} 36. g4
{[%clk 0:00:35.4]} 36... Rb6 {[%clk 0:00:13.2]} 37. Rd7 {[%clk 0:00:34.8]} 37...
a5 {[%clk 0:00:12.1]} 38. bxa5 {[%clk 0:00:29.1]} 38... Rb1+ {[%clk 0:00:12.2]}
39. Kh2 {[%clk 0:00:28.6]} 39... Rb2 {[%clk 0:00:12.4]} 40. Ne5 {[%clk 0:00:18]}
40... Ba6 {[%clk 0:00:11.2]} 41. Rd8+ {[%clk 0:00:15.4]} 41... Kg7 {[%clk
0:00:10.9]} 42. Rd7+ {[%clk 0:00:14.2]} 42... Kg8 {[%clk 0:00:10.8]} 43. Rxd5
{[%clk 0:00:12]} 43... Rxf2 {[%clk 0:00:09.9]} 44. Rd6 {[%clk 0:00:08.3]} 44...
Ra2 {[%clk 0:00:06.9]} 45. g5 {[%clk 0:00:08.4]} 45... Rxa3 {[%clk 0:00:06.9]}
46. g6 {[%clk 0:00:08.3]} 46... hxg6 {[%clk 0:00:06.6]} 47. Nxg6 {[%clk
0:00:08.3]} 47... Rxa5 {[%clk 0:00:06.8]} 48. d5 {[%clk 0:00:07.6]} 48... Ra4
{[%clk 0:00:05.5]} 49. Ne5 {[%clk 0:00:06.1]} 49... Rd4 {[%clk 0:00:04.6]} 50.
Rd8+ {[%clk 0:00:05.8]} 50... Kg7 {[%clk 0:00:04.7]} 51. d6 {[%clk 0:00:06.2]}
51... Rd2 {[%clk 0:00:02.4]} 52. Kh3 {[%clk 0:00:04.9]} 52... Bf1 {[%clk
0:00:01.9]} 53. Rd7+ {[%clk 0:00:03.3]} 53... Kh6 {[%clk 0:00:01.5]} 54. Rxb7
{[%clk 0:00:03.5]} 54... Bxg2+ {[%clk 0:00:01.1]} 55. Kg4 {[%clk 0:00:03.4]}
55... Bxb7 {[%clk 0:00:02]} 56. Kxf4 {[%clk 0:00:01.9]} 56... Kg7 {[%clk
0:00:02.9]} 57. d7 {[%clk 0:00:01.2]} 57... Bc8 {[%clk 0:00:03.8]} 58. dxc8=Q
{[%clk 0:00:00.8]} 58... Rf2+ {[%clk 0:00:03.9]} 59. Ke3 {[%clk 0:00:00.3]}
59... Re2+ {[%clk 0:00:04.3]} 60. Kxe2 {[%clk 0:00:00.7]} 60... Kf6 {[%clk
0:00:04.1]} 1/2-1/2